fUST/lending_fUST_20250604
["ID","MTS","AMOUNT","RATE_DAILY","PERIOD"]
[364107138,1749004240082,-440.0,0.00020547,2]
[364107139,1749004240091,-290.0,0.00020547,2]
[364107140,1749004240101,-290.0,0.00020547,2]
[364107141,1749004240110,-308.38077115,0.00020547,2]
[364107142,1749004240120,-917.0716918,0.00020555,3]
[364107143,1749004240129,-995.44,0.000206,2]
[364107144,1749004240139,-1853.67,0.000206,2]
[364107145,1749004240148,-917.0716918,0.00020797,4]
[364107146,1749004240157,-440.0,0.000208,2]
[364107147,1749004240167,-440.0,0.000208,2]
[364107148,1749004240177,-440.0,0.000208,2]
[364107149,1749004240187,-440.0,0.000208,2]
[364107150,1749004240196,-544.19483079,0.0002082,2]
[364107151,1749004240206,-440.0,0.00020821,2]
[364107152,1749004240215,-535.94,0.00020821,2]
[364107153,1749004240224,-534.61,0.00020821,2]
[364107154,1749004240234,-1167.63,0.00020821,2]
[364107156,1749004240245,-440.0,0.00020821,2]
[364107157,1749004240254,-3590.52274256,0.00021,2]
[364107158,1749004240370,-842.5625,0.0001874,2]
[364107159,1749004240382,-3949.94885486,0.00021,2]
[364107160,1749004240395,-3166.80684524,0.00021,2]
[364107161,1749004240405,-56967.78684463,0.00021,7]
[364107162,1749004240415,-12672.94222187,0.00021,7]
[364107163,1749004240426,-917.0716918,0.00021038,4]
[364107164,1749004240436,-440.0,0.00021074,2]
[364107165,1749004240447,-290.0,0.00021074,2]
[364107166,1749004240457,-290.0,0.00021074,2]
[364107167,1749004240467,-290.0,0.00021074,2]
[364107168,1749004240477,-440.0,0.00021095,2]
[364107169,1749004240492,-535.94,0.00021095,2]
[364107170,1749004240501,-534.61,0.00021095,2]
[364107172,1749004240511,-1167.63,0.00021095,2]
[364107174,1749004240521,-440.0,0.00021095,2]
[364107175,1749004240530,-917.0716918,0.00021279,5]
[364107177,1749004240540,-151.0,0.000213,3]
[364107179,1749004240551,-440.0,0.00021348,2]
[364107181,1749004240560,-440.0,0.00021369,2]
[364107184,1749004240569,-535.94,0.00021369,2]
[364107185,1749004240579,-534.61,0.00021369,2]
[364107188,1749004240589,-1167.63,0.00021369,2]
[364107190,1749004240598,-440.0,0.00021369,2]
[364107191,1749004240608,-5294.43470729,0.00021388,2]
[364107193,1749004240618,-1200.0,0.00021427,2]
[364107196,1749004240630,-917.0716918,0.00021521,5]
[364107197,1749004240640,-440.0,0.00021622,2]
[364107200,1749004240650,-500.0,0.00021622,2]
[364107202,1749004240660,-440.0,0.00021643,2]
[364107204,1749004240670,-535.94,0.00021643,2]
[364107206,1749004240679,-534.61,0.00021643,2]
[364107208,1749004240689,-1167.63,0.00021643,2]
[364107210,1749004240698,-440.0,0.00021643,2]
[364107212,1749004240707,-572.1551899,0.00021671,2]
[364107214,1749004240716,-5981.61893986,0.000217,2]
[364107216,1749004240725,-917.0716918,0.00021762,5]
[364107218,1749004240735,-440.0,0.00021896,2]
[364107220,1749004240744,-151.0,0.000219,3]
[364107222,1749004240754,-440.0,0.00021917,2]
[364107224,1749004240763,-535.94,0.00021917,2]
[364107226,1749004240775,-534.61,0.00021917,2]
[364107228,1749004240784,-1167.63,0.00021917,2]
[364107230,1749004240794,-440.0,0.00021917,2]
[364107232,1749004240803,-24075.81626,0.00021999,2]
[364107234,1749004240813,-86194.03120587,0.00022,2]
[364107236,1749004240821,-35378.50831875,0.00022,3]
[364107238,1749004240835,-188389.36,0.00022,7]
[364107240,1749004240844,-20614.91133615,0.00022,2]
[364107242,1749004240854,-165.41110467,0.00022,10]
[364107244,1749004240863,-172.0,0.00022,2]
[364107246,1749004240874,-917.0716918,0.00022003,6]
[364107248,1749004240885,-405.25949644,0.00022155,2]
[364107249,1749004240895,-197.18538422,0.0002217,2]
[364107252,1749004240906,-532.85,0.00022191,2]
[364107254,1749004240916,-535.94,0.00022191,2]
[364107255,1749004240926,-534.61,0.00022191,2]
[364107258,1749004240936,-1167.63,0.00022191,2]
[364107259,1749004240945,-358.59548447,0.00022191,2]
[364107261,1749004240954,-995.44,0.000222,7]
[364107263,1749004240967,-1853.67,0.000222,7]
[364107266,1749004240976,-917.0716918,0.00022245,6]
[364107268,1749004240986,-151.0,0.000223,7]
[364107269,1749004240995,-535.94,0.00022465,2]
[364107271,1749004241004,-534.61,0.00022465,2]
[364107273,1749004241014,-1167.63,0.00022465,2]
[364107275,1749004241026,-917.0716918,0.00022486,7]
[364107278,1749004241035,-151.0,0.000225,5]
[364107279,1749004241045,-6272.35901842,0.000225,60]
[364107281,1749004241054,-1200.0,0.00022523,2]
[364107284,1749004241064,-521.35583696,0.00022558,2]
[364107286,1749004241074,-5294.43470729,0.00022708,2]
[364107288,1749004241083,-917.0716918,0.00022728,7]
[364107290,1749004241093,-535.94,0.00022739,2]
[364107292,1749004241103,-534.61,0.00022739,2]
[364107294,1749004241112,-1167.77629346,0.00022739,2]
[364107296,1749004241120,-207.4,0.00022808,2]
[364107298,1749004241129,-151.0,0.000229,5]
[364107299,1749004241139,-800.0,0.00022938,2]
[364107302,1749004241148,-400.0,0.00022958,2]
[364107303,1749004241157,-917.0716918,0.00022969,8]
[364107306,1749004241168,-800.0,0.00022982,2]
[364107308,1749004241178,-151.0,0.00023,9]
[364107310,1749004241187,-67258.46295366,0.00023,2]
[364107312,1749004241197,-1143.89684813,0.00023,20]
[364107314,1749004241207,-574.38945792,0.00023,5]
[364107316,1749004241217,-10013.57440144,0.00023,2]
[364107318,1749004241226,-1326.96311491,0.00023,2]
[364107320,1749004241236,-535.94,0.00023013,2]
[364107322,1749004241245,-534.73,0.00023013,2]
[364107324,1749004241254,-168.41146472,0.000232,2]
[364107326,1749004241264,-917.0716918,0.0002321,8]
[364107328,1749004241274,-502.83025295,0.0002328,2]
[364107329,1749004241283,-2011.4134062,0.000233,15]
[364107331,1749004241292,-188389.36,0.000233,7]
[364107333,1749004241302,-160.0,0.000233,3]
[364107336,1749004241312,-423.69433488,0.000233,3]
[364107337,1749004241324,-225.24032,0.000233,7]
[364107339,1749004241333,-842.5625,0.000233,3]
[364107341,1749004241343,-229.45591648,0.000233,3]
[364107343,1749004241352,-12672.94222187,0.000233,3]
[364107345,1749004241361,-158.575084,0.00023315,2]
[364107356,1749004241449,-153.0,0.00023315,2]
[364107359,1749004241468,-572.7197194,0.00023315,2]
[364107361,1749004241477,-153.0,0.00023315,2]
[364107363,1749004241487,-176.6037853,0.00023315,2]
[364107365,1749004241496,-302.9609859,0.00023315,2]
[364107367,1749004241505,-1084.905195,0.00023315,2]
[364107369,1749004241514,-176.6037853,0.00023315,2]
[364107371,1749004241525,-158.575084,0.00023315,2]
[364107373,1749004241534,-176.6037853,0.00023315,2]
[364107375,1749004241545,-153.0,0.00023315,2]
[364107377,1749004241554,-153.0,0.00023315,2]
[364107379,1749004241563,-572.7197194,0.00023315,2]
[364107381,1749004241572,-158.575084,0.00023315,2]
[364107383,1749004241582,-572.7197194,0.00023315,2]
[364107385,1749004241591,-176.6037853,0.00023315,2]
[364107387,1749004241600,-153.0,0.00023315,2]
[364107389,1749004241610,-158.575084,0.00023315,2]
[364107391,1749004241619,-176.6037853,0.00023315,2]
[364107393,1749004241628,-153.0,0.00023315,2]
[364107395,1749004241638,-300.1637676,0.00023315,2]
[364107397,1749004241647,-917.0716918,0.00023452,9]
[364107399,1749004241657,-1344.78,0.000235,2]
[364107401,1749004241666,-995.44,0.000235,7]
[364107403,1749004241675,-1853.67,0.000235,7]
[364107405,1749004241685,-1756.935471,0.00023559,3]
[364107407,1749004241694,-800.0,0.00023559,2]
[364107408,1749004241705,-500.0,0.00023599,2]
[364107410,1749004241714,-151.0,0.000236,7]
[364107412,1749004241723,-151.0,0.000236,7]
[364107414,1749004241733,-2000.0,0.00023612,2]
[364107416,1749004241742,-2000.0,0.00023612,2]
[364107418,1749004241752,-2000.0,0.00023612,2]
[364107420,1749004241761,-2000.0,0.00023612,2]
[364107422,1749004241770,-2000.0,0.00023612,2]
[364107424,1749004241780,-2000.0,0.00023612,2]
[364107426,1749004241790,-536.46476925,0.00023612,2]
[364107428,1749004241800,-160.0,0.00023612,2]
[364107430,1749004241809,-18358.68236298,0.00023613,7]
[364107431,1749004241819,-1200.0,0.00023619,2]
[364107432,1749004241832,-917.0716918,0.00023693,9]
[364107433,1749004241844,-212.90465545,0.000237,7]
[364107434,1749004241855,-22095.73422113,0.000237,7]
[364107435,1749004241869,-10283.78818143,0.000237,7]
[364107436,1749004241892,-13933.18402477,0.000237,7]
[364107437,1749004241904,-7876.79689364,0.000237,7]
[364107461,1749004246336,-1112.02,0.000237,7]
[364107463,1749004246444,-301.36189995,0.000237,7]
[364107464,1749004497614,254.354272,0.00013699,2]
[364107470,1749005037154,5000.0,0.0001551,2]
[364107500,1749005272468,1032.0,0.00021918,60]
[364107558,1749005432471,-3779.38828542,0.00015949,2]
[364107559,1749005432484,-1220.61171458,0.00015949,2]
[364107560,1749005432494,-300.0,0.00016709,2]
[364107562,1749005432505,-180.19990968,0.0001671,2]
[364107563,1749005432515,-524.8234404,0.0001671,2]
[364107564,1749005432524,-440.0,0.0001671,2]
[364107565,1749005432535,-440.0,0.0001671,2]
[364107566,1749005432545,-167.4645099,0.00016742,2]
[364107567,1749005432556,-1351.88345344,0.00016894,2]
[364107584,1749005438354,-992.13952026,0.00016894,2]
[364107585,1749005438364,-440.0,0.00016984,2]
[364107586,1749005438375,-440.0,0.00016984,2]
[364107587,1749005438385,-440.0,0.00017238,2]
[364107588,1749005438550,-440.0,0.00017238,2]
[364107589,1749005438560,-430.0,0.00017257,2]
[364107590,1749005438571,-430.0,0.00017257,2]
[364107591,1749005438581,-440.0,0.00017257,2]
[364107592,1749005438591,-409.64755721,0.00017257,2]
[364107593,1749005438600,-440.0,0.00017257,2]
[364107594,1749005438611,-430.0,0.00017257,2]
[364107595,1749005438621,-430.0,0.00017257,2]
[364107596,1749005438631,-500.00000004,0.00017257,2]
[364107597,1749005438641,-500.0,0.00017257,2]
[364107598,1749005438652,-430.0,0.00017257,2]
[364107599,1749005438661,-430.0,0.00017257,2]
[364107600,1749005438672,-160.0,0.00017258,2]
[364107601,1749005438682,-430.0,0.00017258,2]
[364107602,1749005438693,-430.0,0.00017258,2]
[364107603,1749005438704,-430.0,0.00017258,2]
[364107604,1749005438713,-430.0,0.00017258,2]
[364107605,1749005438722,-322.33603498,0.00017258,2]
[364107606,1749005438732,-430.0,0.00017258,2]
[364107607,1749005438741,-430.0,0.00017258,2]
[364107608,1749005438751,-450.0006123,0.00017258,2]
[364107609,1749005438762,-440.0,0.00017258,2]
[364107610,1749005438772,-398.35592532,0.00017258,2]
[364107611,1749005438783,-440.0,0.00017258,2]
[364107612,1749005438795,-500.0,0.0001745,2]
[364107613,1749005438806,-420.0,0.00017512,2]
[364107614,1749005438816,-440.0,0.00017512,2]
[364107615,1749005438825,-440.0,0.00017531,2]
[364107616,1749005438835,-440.0,0.00017531,2]
[364107617,1749005438845,-430.0,0.00017531,2]
[364107618,1749005438854,-430.0,0.00017531,2]
[364107619,1749005438863,-430.0,0.00017532,2]
[364107620,1749005438875,-440.0,0.00017532,2]
[364107621,1749005438886,-440.0,0.00017532,2]
[364107622,1749005438897,-440.0,0.00017532,2]
[364107623,1749005438907,-430.0,0.00017532,2]
[364107624,1749005438919,-498.76,0.00017532,2]
[364107625,1749005438930,-440.0,0.00017532,2]
[364107626,1749005438941,-440.0,0.00017786,2]
[364107627,1749005438952,-440.0,0.00017805,2]
[364107628,1749005438963,-440.0,0.00017805,2]
[364107629,1749005438973,-440.0,0.00017806,2]
[364107630,1749005438982,-486.04,0.00017806,2]
[364107631,1749005438992,-440.0,0.00017806,2]
[364107632,1749005439002,-440.0,0.00017806,2]
[364107633,1749005439011,-500.0,0.00017806,2]
[364107634,1749005439020,-500.0,0.00017833,2]
[364107635,1749005439030,-500.0,0.00017861,2]
[364107636,1749005439040,-500.0,0.00017888,2]
[364107637,1749005439050,-876.77479881,0.000179,2]
[364107638,1749005439060,-500.0,0.00017916,2]
[364107639,1749005439070,-500.0,0.00017943,2]
[364107640,1749005439080,-500.0,0.0001797,2]
[364107641,1749005439090,-1000.0,0.00017998,2]
[364107642,1749005439099,-440.0,0.0001806,2]
[364107643,1749005439109,-253.31527202,0.00018079,2]
[364107644,1749005439119,-440.0,0.00018079,2]
[364107645,1749005439129,-449.54133612,0.0001808,2]
[364107646,1749005439139,-440.0,0.0001808,2]
[364107647,1749005439149,-430.0,0.0001808,2]
[364107648,1749005439159,-876.77479852,0.00018141,2]
[364107649,1749005439169,-440.0,0.00018334,2]
[364107650,1749005439178,-440.0,0.00018353,2]
[364107651,1749005439188,-500.0,0.00018353,2]
[364107652,1749005439197,-440.0,0.00018354,2]
[364107653,1749005439206,-876.77479852,0.00018383,2]
[364107654,1749005439216,-500.0,0.00018546,2]
[364107655,1749005439226,-440.0,0.00018608,2]
[364107656,1749005439236,-876.77479852,0.00018624,2]
[364107657,1749005439246,-440.0,0.00018627,2]
[364107658,1749005439256,-161.64071544,0.00018628,2]
[364107659,1749005439266,-440.0,0.00018628,2]
[364107660,1749005439275,-500.0,0.00018739,2]
[364107661,1749005439285,-555.41941435,0.00018866,2]
[364107662,1749005439301,-321.35538417,0.00018866,2]
[364107663,1749005439311,-80.07219321,0.00018882,2]
[364107664,1749005439323,-359.92780679,0.00018882,2]
[364107665,1749005439333,-196.14045913,0.000189,2]
[364107666,1749005439346,-151.43009885,0.000189,2]
[364107667,1749005439356,-440.0,0.00018901,2]
[364107668,1749005439366,-62.38823372,0.00018902,2]
[364107669,1749005439387,-377.61176628,0.00018902,2]
[364107670,1749005439397,-6114.33659005,0.00018921,2]
[364107690,1749005440702,-409.89301525,0.00017258,2]
[364107693,1749005440714,-20.10698475,0.00017258,2]
[364107695,1749005440723,-2965.54302878,0.00018921,2]
[364107699,1749005440752,-518.06967604,0.00018921,2]
[364107701,1749005440763,-3074.992927,0.00018921,2]
[364107703,1749005440772,-842.5625,0.00018921,2]
[364107705,1749005440781,-160.0,0.00018921,2]
[364107707,1749005440791,-160.0,0.00018921,2]
[364107709,1749005440800,-229.45591648,0.00018921,2]
[364107711,1749005440809,-212.90465545,0.00018921,2]
[364107713,1749005440818,-423.69433488,0.00018921,2]
[364107715,1749005440827,-187.16708883,0.00018931,2]
[364107717,1749005440836,-876.77479852,0.00019107,2]
[364107719,1749005440846,-440.0,0.00019156,2]
[364107721,1749005440855,-440.0,0.00019175,2]
[364107723,1749005440865,-440.0,0.00019176,2]
[364107725,1749005440875,-876.77479852,0.00019348,2]
[364107727,1749005440884,-440.0,0.0001943,2]
[364107729,1749005440894,-440.0,0.00019449,2]
[364107731,1749005440903,-272.16,0.0001945,2]
[364107733,1749005440912,-876.77479852,0.0001959,2]
[364107735,1749005440922,-440.0,0.00019704,2]
[364107737,1749005440931,-440.0,0.00019723,2]
[364107739,1749005440941,-160.496,0.00019782,2]
[364107741,1749005440950,-876.77479852,0.00019831,2]
[364107743,1749005440960,-481.227757,0.00019978,2]
[364107745,1749005440969,-521.84086293,0.00019997,2]
[364107747,1749005440978,-876.77479852,0.00020072,2]
[364107749,1749005440988,-254.354272,0.00020187,2]
[364107751,1749005440998,-500.0,0.00020271,2]
[364107753,1749005441007,-876.77479852,0.00020314,3]
[364107755,1749005441015,-876.77479852,0.00020555,3]
[364107757,1749005441025,-876.77479852,0.00020797,4]
[364107759,1749005441034,-876.77479852,0.00021038,4]
[364107761,1749005441043,-876.77479852,0.00021279,5]
[364107763,1749005441052,-876.77479852,0.00021521,5]
[364107765,1749005441062,-876.77479852,0.00021762,5]
[364107767,1749005441071,-151.0,0.00022,7]
[364107769,1749005441080,-171.0,0.00022,2]
[364107771,1749005441090,-876.77479852,0.00022003,6]
[364107773,1749005441099,-500.0,0.00022154,2]
[364107775,1749005441109,-11455.90355268,0.00022155,2]
[364107777,1749005441119,-1419.37,0.00022234,10]
[364107779,1749005441128,-1182.81,0.00022234,10]
[364107781,1749005441139,-985.68,0.00022234,10]
[364107783,1749005441149,-74793.63639487,0.00022244,2]
[364108026,1749005443414,-62927.08010607,0.00022244,2]
[364108033,1749005443473,-9334.57986214,0.00022244,2]
[364108035,1749005443487,-595.33629105,0.00022244,2]
[364108145,1749005446547,-535.94,0.00017531,2]
[364108146,1749005446557,-12311.21697586,0.00022244,2]
[364108149,1749005643626,5000.0,0.00024121,120]
[364108151,1749005779519,238.917825,0.00013699,2]
[364108154,1749005908186,824.89001809,0.000219,60]
[364108183,1749006633327,-5000.0,0.00015732,2]
[364108184,1749006633339,-257.3794802,0.00016225,2]
[364108185,1749006633353,-448.56367035,0.0001671,2]
[364108186,1749006633364,-1368.76746472,0.000169,2]
[364108187,1749006633374,-160.03357363,0.00017156,2]
[364108189,1749006633385,-1368.76746459,0.00017176,2]
[364108191,1749006633395,-300.0,0.00017204,2]
[364108192,1749006633406,-1852.6946025,0.00017205,2]
[364108194,1749006633420,-300.0,0.00017254,2]
[364108196,1749006633430,-440.0,0.00017255,2]
[364108197,1749006633440,-440.0,0.00017255,2]
[364108200,1749006633451,-445.43402281,0.00017255,2]
[364108201,1749006633461,-440.0,0.00017255,2]
[364108204,1749006633472,-430.0,0.00017255,2]
[364108206,1749006633483,-430.0,0.00017255,2]
[364108208,1749006633494,-458.40152689,0.00017255,2]
[364108210,1749006633509,-430.0,0.00017255,2]
[364108211,1749006633519,-613.22,0.00017255,2]
[364108213,1749006633529,-463.43768222,0.00017255,2]
[364108215,1749006633539,-430.0,0.00017255,2]
[364108217,1749006633549,-460.83771532,0.00017255,2]
[364108220,1749006633559,-430.0,0.00017255,2]
[364108222,1749006633570,-430.0,0.00017255,2]
[364108224,1749006633580,-430.0,0.00017255,2]
[364108226,1749006633592,-440.0,0.00017255,2]
[364108227,1749006633602,-275.81991863,0.00017255,2]
[364108228,1749006633612,-440.0,0.00017255,2]
[364108229,1749006633623,-430.0,0.00017255,2]
[364108230,1749006633633,-440.0,0.00017255,2]
[364108231,1749006633643,-441.19517051,0.00017255,2]
[364108232,1749006633653,-430.0,0.00017255,2]
[364108233,1749006633665,-430.0,0.00017255,2]
[364108234,1749006633674,-440.75633557,0.00017255,2]
[364108235,1749006633684,-430.0,0.00017255,2]
[364108236,1749006633695,-440.0,0.00017255,2]
[364108237,1749006633705,-451.92577593,0.00017255,2]
[364108238,1749006633720,-22470.11447788,0.00017255,2]
[364108239,1749006633730,-467.8330199,0.00017256,2]
[364108240,1749006633741,-484.10940813,0.00017256,2]
[364108241,1749006633763,-499.79997142,0.00017256,2]
[364108242,1749006633773,-440.1709338,0.00017256,2]
[364108243,1749006633783,-451.64274468,0.00017256,2]
[364108244,1749006633795,-464.53581294,0.00017256,2]
[364108245,1749006633806,-440.35050286,0.00017256,2]
[364108246,1749006633816,-444.74086918,0.00017256,2]
[364108247,1749006633826,-533.73596924,0.00017256,2]
[364108248,1749006633837,-449.66708214,0.00017256,2]
[364108249,1749006633849,-484.1209197,0.00017256,2]
[364108250,1749006633859,-430.0,0.00017256,2]
[364108251,1749006633869,-432.21276922,0.00017256,2]
[364108252,1749006633879,-500.0,0.00017256,2]
[364108253,1749006633889,-500.0,0.00017256,2]
[364108254,1749006633899,-430.0,0.00017256,2]
[364108255,1749006633910,-440.0,0.00017256,2]
[364108256,1749006633920,-475.47631247,0.00017256,2]
[364108257,1749006633929,-465.19648687,0.00017256,2]
[364108258,1749006633939,-430.0,0.00017256,2]
[364108259,1749006633949,-507.16228523,0.00017256,2]
[364108260,1749006633959,-440.34339849,0.00017256,2]
[364108261,1749006633969,-430.0,0.00017256,2]
[364108262,1749006633979,-430.0,0.00017256,2]
[364108263,1749006633988,-467.60029577,0.00017256,2]
[364108264,1749006633998,-440.0,0.00017256,2]
[364108265,1749006634007,-440.0,0.00017256,2]
[364108266,1749006634017,-459.23256024,0.00017256,2]
[364108267,1749006634026,-430.0,0.00017256,2]
[364108268,1749006634036,-430.0,0.00017256,2]
[364108269,1749006634046,-430.0,0.00017256,2]
[364108270,1749006634056,-430.0,0.00017256,2]
[364108271,1749006634065,-430.0,0.00017256,2]
[364108272,1749006634075,-447.22657306,0.00017256,2]
[364108273,1749006634085,-430.0,0.00017256,2]
[364108274,1749006634099,-451.52387624,0.00017256,2]
[364108275,1749006634110,-467.88593578,0.00017256,2]
[364108276,1749006634120,-440.50637689,0.00017256,2]
[364108277,1749006634130,-463.0135487,0.00017256,2]
[364108278,1749006634140,-441.33999135,0.00017256,2]
[364108279,1749006634150,-444.4032069,0.00017256,2]
[364108280,1749006634160,-450.60508919,0.00017256,2]
[364108281,1749006634171,-440.0,0.00017256,2]
[364108282,1749006634180,-438.35795823,0.00017256,2]
[364108283,1749006634190,-440.0,0.00017256,2]
[364108284,1749006634200,-245.60132327,0.00017256,2]
[364108285,1749006634210,-85.50075609,0.00017256,2]
[364108286,1749006634224,-69.78166167,0.00017256,2]
[364108287,1749006634234,-500.0,0.00017257,2]
[364108288,1749006634244,-183.15122992,0.00017257,2]
[364108289,1749006634256,-249.88556379,0.00017257,2]
[364108290,1749006634266,-430.0,0.00017257,2]
[364108291,1749006634277,-430.0,0.00017257,2]
[364108292,1749006634287,-500.0,0.00017257,2]
[364108293,1749006634301,-448.13265668,0.00017257,2]
[364108294,1749006634314,-430.0,0.00017257,2]
[364108295,1749006634328,-444.13384844,0.00017257,2]
[364108296,1749006634341,-315.35668613,0.00017257,2]
[364108297,1749006634355,-406.2027789,0.00017257,2]
[364108298,1749006634366,-441.67109285,0.00017257,2]
[364108299,1749006634378,-430.0,0.00017257,2]
[364108300,1749006634393,-430.0,0.00017257,2]
[364108301,1749006634406,-430.0,0.00017257,2]
[364108302,1749006634419,-430.0,0.00017257,2]
[364108303,1749006634431,-303.4,0.00017257,2]
[364108304,1749006634444,-430.0,0.00017257,2]
[364108305,1749006634459,-430.0,0.00017257,2]
[364108306,1749006634472,-441.63766627,0.00017257,2]
[364108307,1749006634484,-430.0,0.00017257,2]
[364108308,1749006634497,-537.14975611,0.00017257,2]
[364108309,1749006634510,-445.06998368,0.00017257,2]
[364108310,1749006634524,-440.0,0.00017257,2]
[364108311,1749006634537,-430.0,0.00017257,2]
[364108312,1749006634549,-503.31982212,0.00017257,2]
[364108313,1749006634561,-434.04102995,0.00017257,2]
[364108314,1749006634574,-432.09909409,0.00017257,2]
[364108315,1749006634587,-440.0,0.00017257,2]
[364108316,1749006634600,-430.0,0.00017257,2]
[364108317,1749006634612,-430.0,0.00017257,2]
[364108318,1749006634625,-633.14,0.00017257,2]
[364108319,1749006634638,-440.0,0.00017257,2]
[364108320,1749006634650,-430.0,0.00017257,2]
[364108321,1749006634663,-428.89672192,0.00017257,2]
[364108322,1749006634675,-430.0,0.00017257,2]
[364108323,1749006634686,-430.0,0.00017258,2]
[364108324,1749006634699,-238.62045141,0.00017258,2]
[364108325,1749006634714,-1368.76746459,0.00017452,2]
[364108326,1749006634724,-440.0,0.00017529,2]
[364108327,1749006634736,-440.0,0.00017529,2]
[364108328,1749006634749,-440.0,0.00017529,2]
[364108329,1749006634760,-613.22,0.00017529,2]
[364108330,1749006634773,-440.0,0.00017529,2]
[364108331,1749006634785,-440.0,0.00017529,2]
[364108332,1749006634797,-440.0,0.00017529,2]
[364108333,1749006634810,-440.0,0.00017529,2]
[364108334,1749006634822,-500.0,0.0001753,2]
[364108335,1749006634835,-420.0,0.0001753,2]
[364108336,1749006634849,-440.0,0.0001753,2]
[364108337,1749006634861,-440.0,0.0001753,2]
[364108338,1749006634871,-440.0,0.0001753,2]
[364108339,1749006634881,-430.0,0.0001753,2]
[364108340,1749006634894,-440.0,0.0001753,2]
[364108341,1749006634909,-430.0,0.0001753,2]
[364108342,1749006634922,-440.0,0.0001753,2]
[364108343,1749006634935,-440.0,0.0001753,2]
[364108344,1749006634948,-440.0,0.0001753,2]
[364108345,1749006634960,-430.0,0.00017531,2]
[364108346,1749006634972,-440.0,0.00017531,2]
[364108347,1749006634983,-470.30638187,0.00017531,2]
[364108348,1749006634995,-440.0,0.00017531,2]
[364108349,1749006635008,-633.14,0.00017531,2]
[364108350,1749006635019,-440.0,0.00017531,2]
[364108351,1749006635031,-430.0,0.00017531,2]
[364108352,1749006635042,-450.04297334,0.00017531,2]
[364108353,1749006635056,-454.42038763,0.00017531,2]
[364108354,1749006635067,-464.12436313,0.00017531,2]
[364108355,1749006635079,-457.10756259,0.00017531,2]
[364108356,1749006635089,-445.7845509,0.00017531,2]
[364108357,1749006635100,-461.89940947,0.00017531,2]
[364108358,1749006635111,-1368.76746459,0.00017728,2]
[364108359,1749006635122,-440.0,0.00017803,2]
[364108360,1749006635134,-440.0,0.00017803,2]
[364108361,1749006635145,-440.0,0.00017803,2]
[364108362,1749006635157,-613.22,0.00017803,2]
[364108363,1749006635168,-440.0,0.00017803,2]
[364108364,1749006635180,-440.0,0.00017803,2]
[364108365,1749006635191,-440.0,0.00017803,2]
[364108366,1749006635203,-440.0,0.00017803,2]
[364108367,1749006635214,-440.0,0.00017804,2]
[364108368,1749006635224,-440.0,0.00017804,2]
[364108369,1749006635237,-440.0,0.00017804,2]
[364108370,1749006635248,-440.0,0.00017804,2]
[364108371,1749006635259,-440.0,0.00017804,2]
[364108372,1749006635270,-440.0,0.00017804,2]
[364108373,1749006635281,-440.0,0.00017804,2]
[364108374,1749006635293,-440.0,0.00017805,2]
[364108375,1749006635304,-440.0,0.00017805,2]
[364108376,1749006635315,-633.14,0.00017805,2]
[364108377,1749006635326,-440.0,0.00017805,2]
[364108378,1749006635336,-500.0,0.00017873,2]
[364108379,1749006635351,-63.39212055,0.0001797,2]
[364108380,1749006635370,-436.60787945,0.0001797,2]
[364108381,1749006635382,-151.0,0.0001797,2]